bitfinex/quotes_ETHUSD_20240710
["timestamp","ask_amount","ask_price","bid_price","bid_amount"]
[1720585146077,0.25998181,3102.1,3100.7,0.33304946]
[1720585146301,0.25998181,3101.9,3100.3,2.3106]
[1720585146434,0.33781201,3102.2,3099.8,5.258]
[1720585146763,0.25998181,3102.1,3100.3,3.266]
[1720585147270,0.25998181,3102.1,3100.4,3.0]
[1720585147469,0.2445,3102.3,3100.4,3.0]
[1720585147796,6.29,3102.7,3101.2,3.266]
[1720585147797,0.25998181,3102.7,3101.2,3.266]
[1720585147965,0.25998181,3102.7,3101.3,0.06447758]
[1720585148154,2.6651,3103.5,3101.4,0.06447419]
[1720585148351,2.3422,3103.5,3101.6,3.266]
[1720585148666,2.3422,3103.5,3101.3,3.3266]
[1720585148667,0.25998181,3103.5,3102.0,3.266]
[1720585148876,0.25998181,3103.3,3101.7,3.0]
[1720585150178,0.25998181,3103.3,3101.7,3.06446879]
[1720585150381,0.25998181,3103.9,3102.0,3.266]
[1720585150592,0.33773618,3104.2,3102.5,2.4185]
[1720585150798,0.25998181,3104.4,3102.5,5.4185]
[1720585151092,0.25998181,3104.4,3102.0,3.266]
[1720585151093,0.25998181,3103.3,3102.0,3.266]
[1720585151268,0.25998181,3103.3,3101.9,2.2585]
[1720585152384,0.55,3103.2,3101.9,2.2585]
[1720585152784,3.0,3103.4,3101.9,2.2585]
[1720585153018,1.08621,3103.3,3102.0,0.22585]
[1720585153309,1.08621,3103.3,3102.1,0.06446253]
[1720585153598,0.53621,3103.3,3102.0,3.49185]
[1720585153906,0.25998181,3103.7,3102.0,3.49185]
[1720585154702,0.27535818,3104.3,3102.0,3.49185]
[1720585154703,0.25998181,3104.2,3102.4,3.266]
[1720585154922,0.25998181,3104.2,3102.6,2.4573]
[1720585155060,0.25998181,3104.5,3102.6,2.4573]
[1720585155398,0.25998181,3104.3,3102.6,2.4573]
[1720585155887,0.25998181,3104.3,3102.6,5.10021982]
[1720585156092,0.25998181,3104.3,3102.7,3.0]
[1720585156432,0.27318818,3104.4,3102.7,3.0]
[1720585156433,0.27318818,3104.4,3102.8,3.33043982]
[1720585156560,0.25998181,3104.5,3102.7,3.0]
[1720585156758,10.726,3104.9,3102.6,2.4573]
[1720585156957,0.25998181,3104.5,3102.6,2.4573]
[1720585157199,0.25998181,3104.3,3102.6,2.4573]
[1720585157372,0.25998181,3104.3,3102.6,5.7233]
[1720585157922,0.25998181,3104.5,3103.0,3.266]
[1720585158064,0.25998181,3104.5,3103.1,3.06443643]
[1720585158263,0.25998181,3104.5,3103.1,3.0]
[1720585158501,0.25998181,3104.5,3103.2,0.064435]
[1720585158816,0.25998181,3104.4,3102.6,5.7233]
[1720585158962,0.25998181,3104.4,3102.7,3.06443771]
[1720585159165,0.25998181,3104.4,3103.0,3.266]
[1720585159478,0.25998181,3104.7,3103.1,3.0644377]
[1720585159900,0.25998181,3104.5,3103.1,3.0644377]
[1720585160461,0.25998181,3104.5,3103.1,3.0]
[1720585160707,0.25998181,3104.5,3102.7,3.0]
[1720585160914,0.25998181,3104.3,3102.7,3.0]
[1720585161089,0.55,3104.4,3102.7,3.06444018]
[1720585161296,0.55,3104.4,3103.0,3.266]
[1720585161596,0.55,3104.4,3103.1,3.06443643]
[1720585161807,0.25998181,3104.7,3103.1,3.06443643]
[1720585161960,3.24719,3105.0,3103.6,2.3501]
[1720585161961,0.25998181,3104.9,3103.6,2.3501]
[1720585162170,0.25998181,3104.9,3103.7,0.0644244]
[1720585162389,0.29790718,3104.9,3103.7,0.0644244]
[1720585163427,0.55788899,3104.9,3103.6,3.0]
[1720585163584,0.55788899,3104.9,3103.7,0.06443079]
[1720585164400,0.29790718,3104.9,3103.7,0.06443079]
[1720585164805,0.29790718,3104.9,3103.6,3.0]
[1720585165018,0.55788899,3104.9,3103.6,3.0]
[1720585165369,0.55,3104.8,3103.6,3.0]
[1720585165569,0.55,3104.8,3103.2,3.0]
[1720585166698,0.25998181,3104.7,3103.2,3.0]
[1720585167205,0.55,3104.8,3103.2,3.0]
[1720585167370,0.55,3104.8,3103.2,3.06443009]
[1720585167703,0.55,3104.8,3103.3,0.0644301]
[1720585168297,0.29790718,3104.9,3103.3,2.6423101]
[1720585168477,0.29790718,3104.9,3103.5,3.266]
[1720585168684,0.55788899,3104.9,3103.6,3.0]
[1720585168906,0.55788899,3104.9,3103.4,3.30644301]
[1720585168907,0.32979072,3104.8,3103.4,3.30644301]
[1720585169206,0.32979072,3104.8,3103.5,3.0]
[1720585169389,0.32979072,3104.8,3103.4,0.30644301]
[1720585169704,3.0,3105.0,3103.4,0.30644301]
[1720585170084,0.25998181,3104.9,3103.4,0.30644301]
[1720585170279,0.25998181,3104.9,3103.4,0.37087067]
[1720585170519,3.0,3105.0,3103.4,0.37087067]
[1720585170703,0.54719,3104.9,3103.4,0.37087067]
[1720585171007,0.55,3104.8,3103.4,0.30644301]
[1720585171309,0.55,3104.8,3102.6,2.57847]
[1720585171310,0.55,3104.8,3102.6,2.2508]
[1720585171506,2.3631,3104.7,3102.6,2.2508]
[1720585171668,0.25998181,3103.7,3102.6,2.2508]
[1720585171870,0.25998181,3103.7,3102.7,0.22508]
[1720585172083,0.25998181,3103.7,3102.0,3.266]
[1720585172311,0.55,3103.6,3102.0,3.266]
[1720585172788,0.80998181,3103.7,3102.0,3.266]
[1720585172984,1.34629181,3103.7,3102.0,3.266]
[1720585173298,0.25998181,3103.3,3102.0,3.266]
[1720585173818,1.08631,3103.7,3101.4,2.3635]
[1720585173819,0.25998181,3102.9,3101.4,2.3635]
[1720585173974,1.08631,3103.7,3101.5,0.23635]
[1720585173975,9.7251,3103.6,3101.5,0.23635]
[1720585174170,2.2651,3103.6,3102.5,3.266]
[1720585174396,0.55,3103.5,3102.1,3.266]
[1720585174616,3.55,3103.5,3101.9,0.257913]
[1720585174822,0.25998181,3103.1,3101.9,0.257913]
[1720585175117,0.55,3103.0,3101.6,7.47]
[1720585175326,3.55,3103.5,3101.5,3.266]
[1720585175526,3.55,3103.5,3101.6,0.06446771]
[1720585175729,0.25998181,3103.0,3101.7,0.33304677]
[1720585176231,3.55,3103.5,3101.9,3.266]
[1720585176430,3.55,3103.5,3102.0,3.0]
[1720585176590,0.55,3103.5,3102.0,3.0]
[1720585176793,3.55,3103.5,3101.5,3.33045982]
[1720585177033,0.63565918,3103.4,3101.6,3.0]
[1720585177231,0.55,3103.3,3101.6,3.0]
[1720585177533,0.80998181,3103.3,3101.6,3.0]
[1720585177728,0.25998181,3103.1,3101.6,3.0]
[1720585178034,0.55,3103.0,3101.6,3.0]
[1720585178407,0.55,3103.2,3101.6,3.0]
[1720585178608,0.25998181,3102.9,3101.6,3.0]
[1720585178812,2.3356,3102.8,3101.6,3.0]
[1720585179019,0.55,3102.7,3101.1,3.266]
[1720585179242,0.80955818,3102.7,3101.1,3.266]
[1720585179395,1.06953999,3102.7,3101.1,3.266]
[1720585179597,0.80955818,3102.7,3101.1,3.266]
[1720585179822,0.31451582,3102.6,3101.1,3.266]
[1720585180241,0.31451582,3102.6,3101.2,3.0]
[1720585180898,2.3356,3102.8,3101.5,3.266]
[1720585181100,3.0,3103.1,3101.6,3.0]
[1720585181426,2.3356,3103.2,3101.9,3.266]
[1720585181629,2.3356,3103.2,3102.0,3.06445759]
[1720585182152,2.3356,3103.2,3102.0,3.0]
[1720585182498,2.3356,3103.2,3102.1,0.06445759]
[1720585182733,2.3356,3103.2,3102.2,0.30644576]
[1720585183259,7.46,3103.4,3102.3,0.06445759]
[1720585183461,5.3356,3103.7,3102.3,0.06445759]
[1720585183613,5.3356,3103.7,3102.0,3.0]
[1720585183811,5.3356,3103.7,3101.6,2.45175992]
[1720585184052,0.82169281,3103.5,3101.7,0.23873]
[1720585184257,0.82169281,3103.5,3101.7,3.23873]
[1720585184407,0.561711,3103.5,3101.9,3.266]
[1720585184613,2.3356,3103.7,3102.0,3.39750008]
[1720585185035,0.55,3103.6,3102.0,3.39750008]
[1720585185238,0.55,3103.6,3102.1,0.33469798]
[1720585185463,0.55,3103.6,3102.2,0.06445378]
[1720585185729,0.55,3103.6,3102.1,0.33469798]
[1720585186152,0.33768309,3103.5,3102.1,0.33469798]
[1720585186369,0.33768309,3103.5,3102.2,0.06445978]
[1720585186681,0.33768309,3103.5,3102.1,3.266]
[1720585186856,0.55,3103.4,3102.2,3.3266]
[1720585187638,0.55,3103.4,3102.2,0.3266]
[1720585187639,0.25998181,3103.1,3102.2,0.3266]
[1720585187836,0.25998181,3103.1,3101.8,3.0]
[1720585188279,0.25998181,3103.3,3101.8,3.0]
[1720585188450,0.55,3103.2,3101.8,3.0]
[1720585188655,0.25998181,3103.1,3101.8,3.0]
[1720585189378,0.55,3103.2,3101.8,3.0]
[1720585189379,0.55,3103.0,3101.8,3.0]
[1720585189538,0.25998181,3103.1,3101.8,3.0]
[1720585189743,0.55,3103.2,3101.8,3.0]
[1720585189744,2.4535,3102.9,3101.8,3.0]
[1720585189992,2.4535,3102.9,3101.3,3.266]
[1720585189993,0.24535,3102.8,3101.3,3.266]
[1720585190137,0.55,3102.7,3101.3,3.266]
[1720585190545,0.80998181,3102.7,3101.3,3.266]
[1720585190784,2.4535,3103.4,3102.0,3.266]
[1720585191091,3.0035,3103.4,3102.0,3.266]
[1720585191276,3.0035,3103.4,3101.6,3.33045982]
[1720585191277,0.25998181,3103.3,3101.6,3.33045982]
[1720585191440,0.55,3103.2,3101.7,6.04679663]
[1720585191754,0.25998181,3103.1,3101.8,0.06445985]
[1720585192085,0.67439182,3103.1,3101.9,0.33053284]
[1720585193001,0.25998181,3103.1,3101.9,0.33053284]
[1720585193176,0.55,3103.2,3101.9,0.39499537]
[1720585193576,3.59410012,3103.3,3101.9,0.39499537]
[1720585193577,3.0,3103.3,3101.9,0.39499537]
[1720585193772,2.4535,3103.4,3101.9,0.39499537]
[1720585193773,5.4535,3103.4,3101.9,0.39499537]
[1720585194008,6.04241768,3103.4,3101.9,0.33053284]
[1720585194726,0.25998181,3103.3,3101.9,0.33053284]
[1720585195274,6.04241768,3103.4,3101.9,0.33053284]
[1720585195987,0.25998181,3103.3,3101.9,2.66133284]
[1720585196210,0.25998181,3103.3,3102.0,3.27257898]
[1720585196807,5.4535,3103.4,3102.1,0.06445698]
[1720585197120,2.4535,3103.4,3102.1,0.06445698]
[1720585197287,0.33768309,3103.5,3102.1,0.06445698]
[1720585198908,0.33768309,3103.5,3102.5,2.3401]
[1720585199210,0.33768309,3103.5,3102.6,0.06443928]
[1720585201127,0.33768309,3103.5,3102.5,5.3401]
[1720585201494,0.33768309,3103.5,3102.8,3.266]
[1720585201689,0.33768309,3103.5,3102.9,3.0]
[1720585201917,0.33768309,3103.5,3103.0,0.06443523]
[1720585202131,0.33768309,3103.5,3102.9,3.0]
[1720585202132,7.46,3104.3,3103.1,2.384]
[1720585202421,5.3439,3104.7,3103.1,2.384]
[1720585202422,1.11646846,3104.2,3103.1,2.384]
[1720585202624,5.3439,3104.7,3103.1,2.384]
[1720585202625,3.53439,3104.6,3103.2,0.2384]
[1720585202937,3.53439,3104.6,3103.2,3.2384]
[1720585203227,1.11646015,3104.5,3103.2,3.0]
[1720585203377,1.11646015,3104.5,3103.1,2.44843172]
[1720585203725,1.11646015,3104.4,3103.1,2.44843172]
[1720585204012,2.60388181,3104.7,3103.2,0.24484317]
[1720585204013,1.11646015,3104.3,3103.2,0.24484317]
[1720585204211,2.60388181,3104.7,3103.3,0.26932749]
[1720585204430,0.25998181,3104.5,3103.3,0.26932749]
[1720585204604,1.11644431,3104.4,3103.3,0.26932749]
[1720585205005,1.11644431,3104.6,3103.3,0.26932749]
[1720585206315,1.11644416,3104.5,3103.4,0.06442993]
[1720585206533,11.59870554,3105.1,3103.4,0.39136268]
[1720585206534,2.71408181,3105.1,3103.4,0.39136268]
[1720585206819,1.11639961,3105.0,3103.5,2.4483]
[1720585207020,1.11639961,3104.9,3103.6,0.34838687]
[1720585207321,0.25998181,3105.1,3103.6,3.34838687]
[1720585207523,0.25998181,3104.9,3103.6,3.0644206]
[1720585207820,0.25998181,3104.9,3103.6,3.0]
[1720585208028,0.25998181,3104.9,3103.5,5.4483]
[1720585208029,0.55,3104.8,3103.5,5.4483]
[1720585208321,0.55,3104.8,3103.5,5.51272874]
[1720585209027,0.25998181,3104.9,3103.5,5.51272874]
[1720585209182,0.33755945,3104.7,3103.5,5.51272874]
[1720585209984,0.33755945,3104.7,3103.5,5.4483]
[1720585210500,1.66643703,3104.6,3103.4,0.16]
[1720585210684,1.55818668,3104.5,3103.4,0.16]
[1720585210892,1.11643703,3104.4,3103.4,0.16]
[1720585211109,0.55,3104.3,3103.4,0.16]
[1720585211312,0.25998181,3104.1,3103.4,0.16]
[1720585211725,0.25998181,3103.9,3103.4,0.16]
[1720585212198,0.25998181,3104.1,3103.4,0.16]
[1720585212741,0.25998181,3103.9,3103.4,0.16]
[1720585212937,0.25807818,3103.8,3103.4,0.16]
[1720585213142,0.55,3104.3,3103.4,0.16]
[1720585213456,0.25998181,3103.9,3103.4,0.16]
[1720585213957,3.55,3104.4,3103.4,0.16]
[1720585214098,1.37659961,3104.3,3103.4,0.16]
[1720585214305,2.15927776,3104.2,3103.4,0.16]
[1720585214661,1.1166178,3104.1,3103.4,0.16]
[1720585214942,0.25998181,3103.6,3103.4,0.16]
[1720585215147,1.1166178,3103.5,3103.4,0.16]
[1720585215374,1.6666178,3103.5,3103.4,0.16]
[1720585215501,5.2877628,3103.5,3103.4,0.16]
[1720585215706,4.21029961,3103.5,3103.4,0.16]
[1720585216028,7.21029961,3103.5,3103.4,0.16]
[1720585216234,6.09368181,3103.5,3103.4,0.16]
[1720585216417,8.89712013,3103.5,3103.4,0.16]
[1720585216602,8.30279082,3103.5,3103.4,0.16]
[1720585217152,7.70569506,3103.5,3103.4,0.16]
[1720585217305,6.01909082,3103.5,3103.4,0.16]
[1720585217509,4.11702355,3103.5,3103.4,0.16]
[1720585217808,3.0,3103.5,3103.4,0.16]
[1720585218137,3.0,3103.6,3103.4,0.16]
[1720585218347,3.0,3103.8,3103.4,0.16]
[1720585218561,1.83194654,3103.7,3103.4,0.16]
[1720585218737,1.11681612,3103.6,3103.4,0.16]
[1720585219039,0.71513042,3103.7,3103.4,0.16]
[1720585219243,1.11682121,3103.6,3103.4,0.16]
[1720585219450,0.71513042,3103.7,3103.4,0.16]
[1720585219610,1.68635724,3104.0,3103.4,0.16]
[1720585219812,1.37676609,3103.9,3103.4,0.16]
[1720585220032,1.11678141,3103.8,3103.4,0.16]
[1720585220234,1.11676612,3103.7,3103.4,0.16]
[1720585220434,0.4686351,3103.8,3103.4,0.16]
[1720585220647,1.11676485,3103.7,3103.4,0.16]
[1720585220830,3.0,3103.9,3103.4,0.16]
[1720585221036,1.68635104,3104.0,3103.4,0.16]
[1720585221037,1.11677404,3103.8,3103.4,0.16]
[1720585221347,1.11677404,3103.7,3103.4,0.16]
[1720585221644,0.25998181,3103.5,3103.4,0.16]
[1720585222222,3.674686,3103.5,3103.4,0.16]
[1720585222436,4.224686,3103.5,3103.4,0.16]
[1720585222612,3.96470419,3103.5,3103.4,0.16]
[1720585222809,2.23204784,3103.5,3103.4,0.16]
[1720585223050,1.68204784,3103.5,3103.4,0.16]
[1720585223250,1.11694232,3103.5,3103.4,0.16]
[1720585224483,1.4546361,3103.5,3103.4,0.16]
[1720585226147,0.33769378,3103.5,3103.4,0.16]
[1720585229501,7.46,3104.9,3103.5,2.4173]
[1720585229694,0.25998181,3105.1,3103.5,2.4173]
[1720585229695,1.11636631,3104.8,3103.5,2.4173]
[1720585229900,0.33757386,3104.8,3103.5,2.4173]
[1720585230205,0.33757386,3104.8,3103.5,5.4173]
[1720585236005,0.80998181,3104.7,3103.5,5.4173]
[1720585236369,0.25998181,3104.5,3103.5,5.4173]
[1720585236565,0.25998181,3104.7,3103.5,5.4173]
[1720585237395,0.25998181,3104.4,3103.5,5.4173]
[1720585237703,0.33757386,3104.8,3103.5,5.4173]
[1720585237911,1.92642793,3104.7,3103.5,5.4173]
[1720585238206,0.25998181,3104.3,3103.5,2.4173]
[1720585238365,0.25998181,3104.6,3103.5,2.4173]
[1720585238568,0.55,3104.5,3103.5,2.4173]
[1720585239166,1.11648925,3104.4,3103.5,2.4173]
[1720585239403,0.16664893,3104.3,3103.5,2.4173]
[1720585239603,0.55,3104.5,3103.5,2.4173]
[1720585239807,1.11648057,3104.4,3103.5,2.4173]
[1720585240101,3.0,3104.7,3103.5,2.4173]
[1720585240304,0.33757386,3104.8,3103.5,2.4173]
[1720585240305,0.59755567,3104.8,3103.6,0.25773]
[1720585240600,1.11634801,3104.7,3103.6,0.25773]
[1720585240802,0.59755567,3104.8,3103.6,0.25773]
[1720585240965,1.1163855,3104.7,3103.6,0.25773]
[1720585241173,0.25998181,3104.6,3103.7,0.267503]
[1720585241470,0.59755567,3104.8,3103.7,0.267503]
[1720585241983,0.25998181,3104.6,3103.7,0.267503]
[1720585242494,0.59755567,3104.8,3103.7,0.267503]
[1720585244869,0.33757386,3104.8,3103.8,2.42742637]
[1720585245069,0.33757386,3104.8,3103.9,0.26949294]
[1720585245299,0.59755567,3104.8,3103.9,0.26949294]
[1720585245673,0.33757386,3104.8,3103.9,0.26949294]
[1720585250011,0.33757386,3104.8,3104.0,0.06442227]
[1720585250545,0.33757386,3104.8,3103.9,0.33391498]
[1720585250717,0.33757386,3104.8,3104.0,0.26324929]
[1720585253684,0.59755567,3104.8,3104.0,0.26324929]
[1720585254717,0.33757386,3104.8,3104.0,0.26324929]
[1720585254906,0.59755567,3104.8,3103.8,2.363]
[1720585255078,1.11630895,3104.7,3103.8,2.363]
[1720585255277,0.59755567,3104.8,3103.8,2.363]
[1720585255278,1.11630895,3104.6,3103.8,2.363]
[1720585255482,0.33757386,3104.8,3103.9,0.2363]
[1720585255795,1.11630529,3104.7,3103.9,0.2363]
[1720585255988,0.33757386,3104.8,3103.9,0.2363]
[1720585255989,1.11630529,3104.6,3103.9,0.2363]
[1720585256218,1.11630529,3104.7,3104.0,0.25993]
[1720585256417,1.1163121,3104.6,3104.0,0.25993]
[1720585256715,0.33757386,3104.8,3104.0,0.25993]
[1720585256929,1.37627749,3104.7,3104.0,0.25993]
[1720585257132,1.11629568,3104.6,3104.0,0.25993]
[1720585257620,1.11629568,3104.7,3104.0,0.25993]
[1720585257801,1.11629568,3104.6,3104.0,0.25993]
[1720585258002,0.33757386,3104.8,3104.0,0.25993]
[1720585258197,1.11625975,3104.7,3104.0,0.25993]
[1720585258402,1.11625975,3104.6,3104.0,0.25993]
[1720585258604,0.33757386,3104.8,3104.0,0.25993]
[1720585259104,1.37624891,3104.7,3104.0,0.25993]
[1720585259306,1.11629122,3104.6,3104.0,0.25993]
[1720585259512,0.33757386,3104.8,3104.0,0.25993]
[1720585259513,1.11629122,3104.5,3104.0,0.25993]
[1720585259713,1.37627303,3104.7,3104.0,0.25993]
[1720585259917,1.11629122,3104.6,3104.0,0.25993]
[1720585260116,1.45382196,3104.6,3104.0,0.25993]
[1720585260316,1.11629122,3104.5,3104.0,0.25993]
[1720585261404,1.11632574,3104.4,3104.0,0.25993]
[1720585261714,0.33753074,3104.6,3104.0,0.25993]
[1720585261923,1.11630836,3104.5,3104.0,0.25993]
[1720585262112,1.11630836,3104.4,3104.0,0.25993]
[1720585262327,1.11630836,3104.5,3104.0,0.25993]
[1720585262527,1.11630419,3104.4,3104.0,0.25993]
[1720585262717,0.33753074,3104.6,3104.0,0.25993]
[1720585262919,1.11630961,3104.5,3104.0,0.25993]
[1720585263111,1.11630961,3104.4,3104.0,0.25993]
[1720585263308,1.11630961,3104.5,3104.0,0.25993]
[1720585264408,1.37629142,3104.5,3103.8,2.363]
[1720585264606,0.25998181,3104.5,3103.8,2.363]
[1720585264911,1.11633757,3104.4,3103.8,2.363]
[1720585265165,0.33753074,3104.6,3103.9,0.2363]
[1720585265509,1.1162768,3104.5,3103.9,0.2363]
[1720585265820,0.33753074,3104.6,3103.9,0.2363]
[1720585266021,1.11626686,3104.5,3103.9,0.2363]
[1720585266227,0.33753074,3104.6,3103.9,0.2363]
[1720585266421,1.11627216,3104.5,3104.0,0.25993]
[1720585266716,0.33753074,3104.6,3104.0,0.25993]
[1720585266919,1.11626584,3104.5,3104.0,0.25993]
[1720585267145,0.33753074,3104.6,3104.0,0.25993]
[1720585267348,1.11626541,3104.5,3104.0,0.25993]
[1720585267644,0.33753074,3104.6,3104.0,0.25993]
[1720585267813,1.11626349,3104.5,3104.0,0.25993]
[1720585268007,0.33753074,3104.6,3104.0,0.25993]
[1720585268210,1.1162588,3104.5,3104.0,0.25993]
[1720585268438,0.33753074,3104.6,3104.0,0.25993]
[1720585268708,1.11623447,3104.5,3104.0,0.25993]
[1720585268903,0.33753074,3104.6,3104.0,0.25993]
[1720585269144,1.11623202,3104.5,3104.0,0.25993]
[1720585269447,1.11623202,3104.4,3104.0,0.25993]
[1720585269652,1.11623202,3104.5,3104.0,0.25993]
[1720585269804,1.11623202,3104.4,3104.0,0.25993]
[1720585270004,0.33753074,3104.6,3104.0,0.25993]
[1720585270005,1.11623202,3104.5,3104.0,0.25993]
[1720585271115,0.33753074,3104.6,3104.0,0.25993]
[1720585271349,1.11622568,3104.5,3104.0,0.25993]
[1720585271518,1.11622568,3104.4,3103.8,2.363]
[1720585271728,1.11622568,3104.5,3103.8,2.363]
[1720585274643,1.11627914,3104.4,3103.8,2.363]
[1720585274809,0.33753074,3104.6,3103.8,2.363]
[1720585275006,1.11626766,3104.5,3103.8,2.363]
[1720585275346,1.11626766,3104.4,3103.8,2.42742214]
[1720585275513,1.11626766,3104.5,3103.8,2.42742214]
[1720585275707,0.33753074,3104.6,3103.8,2.42742214]
[1720585275908,1.11623841,3104.5,3103.8,2.363]
[1720585276105,0.33753074,3104.6,3103.8,2.363]
[1720585276365,1.11623879,3104.5,3103.8,2.42742155]
[1720585276506,0.33753074,3104.6,3103.8,2.42742155]
[1720585276507,0.33753074,3104.6,3104.1,2.3722]
[1720585276714,0.33753074,3104.6,3104.5,2.3722]
[1720585276910,0.33753074,3104.6,3104.5,5.3722]
[1720585277144,1.68981233,3105.4,3104.5,5.3722]
[1720585277319,1.45351945,3105.3,3104.5,5.43660924]
[1720585277518,1.11605892,3105.2,3104.5,5.3722]
[1720585277724,1.11605098,3105.1,3104.5,5.3722]
[1720585278049,1.11605098,3105.0,3104.5,2.3722]
[1720585278346,0.33746053,3105.3,3104.6,0.06441401]
[1720585278908,0.33746053,3105.3,3104.5,5.3722]
[1720585279109,0.33746053,3105.3,3104.5,5.43660395]
[1720585279507,0.33746053,3105.3,3104.5,5.43660442]
[1720585279742,0.33746053,3105.3,3104.5,5.3722]
[1720585279943,0.33746053,3105.3,3104.6,0.06440437]
[1720585280727,0.33746053,3105.3,3104.7,2.3722]
[1720585281051,0.33746053,3105.3,3104.8,2.50940217]
[1720585281554,0.33746053,3105.3,3105.0,2.3722]
[1720585281721,7.46,3105.9,3105.0,2.3722]
[1720585282120,0.33739283,3105.8,3105.0,2.3722]
[1720585284436,0.33739283,3105.8,3105.1,0.06439341]
[1720585284651,0.33739283,3105.8,3105.1,0.06439667]
[1720585284835,0.33739283,3105.8,3105.2,0.24365967]
[1720585287579,0.33739283,3105.8,3105.0,2.3722]
[1720585287580,0.25998181,3105.7,3105.0,2.3722]
[1720585288044,0.33739283,3105.8,3105.0,2.3722]
[1720585288250,0.33739283,3105.8,3104.4,2.4002]
[1720585288251,0.25998181,3105.5,3104.4,2.4002]
[1720585289286,0.25998181,3105.3,3104.4,2.4002]
[1720585289453,0.25998181,3105.5,3104.4,2.4002]
[1720585289766,0.25998181,3105.5,3104.5,0.24002]
[1720585290068,0.25998181,3105.5,3104.5,3.24002]
[1720585290591,0.25998181,3105.3,3104.5,3.24002]
[1720585290737,0.25998181,3105.3,3104.4,2.4002]
[1720585290939,1.11619983,3105.2,3103.6,2.3947]
[1720585291240,3.55,3105.2,3103.6,2.3947]
[1720585291438,3.55,3105.2,3103.7,0.23947]
[1720585291439,3.1847977,3105.1,3103.7,0.23947]
[1720585291737,1.11626026,3105.0,3103.7,0.23947]
[1720585291987,0.25998181,3104.8,3103.6,2.3947]
[1720585292150,4.16266026,3104.7,3103.4,0.16]
[1720585293284,0.25998181,3103.5,3103.4,0.16]
[1720585293582,0.80998181,3103.5,3103.4,0.16]
[1720585296198,0.25998181,3103.8,3103.4,0.16]
[1720585297304,3.0,3103.9,3103.4,0.16]
[1720585297513,0.33765601,3103.7,3103.4,0.16]
[1720585298421,7.46,3104.3,3103.4,0.16]
[1720585298721,0.3375991,3104.1,3103.4,0.16]
[1720585300311,0.25998181,3104.5,3103.5,0.06443133]
[1720585300518,0.59755656,3104.5,3103.5,0.06443133]
[1720585300717,0.59755656,3104.5,3103.4,0.16]
[1720585300718,0.59755656,3104.5,3103.6,0.06443131]
[1720585301011,0.33757475,3104.5,3103.7,2.3351]
[1720585301193,0.33757475,3104.5,3103.8,0.06442568]
[1720585301971,7.46,3105.5,3103.8,0.06442568]
[1720585302181,2.4671,3105.7,3103.9,0.23995257]
[1720585302182,0.33753052,3105.1,3103.9,0.23995257]
[1720585302418,0.33753052,3105.1,3103.9,3.23995257]
[1720585302595,0.33753052,3105.1,3103.9,0.23995257]
[1720585302797,0.33753052,3105.1,3104.1,2.3351]
[1720585302999,0.33753052,3105.1,3104.4,2.445]
[1720585303171,0.25998181,3105.8,3104.5,0.06440848]
[1720585303378,0.25998181,3105.8,3104.6,2.3351]
[1720585303379,0.33745008,3105.5,3104.6,2.3351]
[1720585303580,0.33745008,3105.5,3104.7,0.06440499]
[1720585303789,0.33745008,3105.5,3104.8,0.2399505]
[1720585305805,0.33745008,3105.5,3104.9,0.06440496]
[1720585306531,0.25998181,3106.0,3104.8,2.8165905]
[1720585306685,0.33740732,3105.9,3104.8,2.57664]
[1720585309037,0.33740732,3105.9,3104.8,2.64103725]
[1720585309520,0.33740732,3105.9,3104.7,3.0]
[1720585309726,0.33740732,3105.9,3104.7,5.57673]
[1720585310924,0.33740732,3105.9,3104.8,0.06439726]
[1720585311293,0.33740732,3105.9,3104.8,2.64104726]
[1720585311493,0.33740732,3105.9,3104.9,3.0]
[1720585311829,0.33740732,3105.9,3105.0,0.06439726]
[1720585312527,0.33740732,3105.9,3104.9,3.0]
[1720585312693,0.25998181,3105.8,3104.7,3.0]
[1720585312902,0.25998181,3105.8,3104.6,2.3351]
[1720585314224,0.33740732,3105.9,3104.6,2.3351]
[1720585315232,0.33740732,3105.9,3104.8,2.445]
[1720585315448,0.33740732,3105.9,3104.9,0.0643973]
[1720585315604,0.33740732,3105.9,3104.9,3.0]
[1720585316023,0.25998181,3105.8,3104.7,3.0]
[1720585316335,0.25998181,3105.8,3104.6,5.3351]
[1720585316731,0.33740732,3105.9,3104.6,5.3351]
[1720585316971,7.46,3106.7,3105.5,2.445]
[1720585317153,0.25998181,3106.9,3105.9,2.445]
[1720585317431,0.25998181,3106.9,3106.0,0.2445]
[1720585317589,0.25998181,3106.9,3105.9,2.445]
[1720585317790,0.33734908,3107.0,3106.0,0.06438319]
[1720585320206,0.33734908,3107.0,3105.9,5.02073]
[1720585320407,0.33734908,3107.0,3105.9,2.445]
[1720585320624,0.33734908,3107.0,3105.9,5.445]
[1720585321233,0.33734908,3107.0,3105.9,5.50937476]
[1720585321559,0.33734908,3107.0,3106.3,2.445]
[1720585321837,0.25998181,3107.6,3106.3,5.02039]
[1720585322051,0.33728381,3107.4,3106.7,2.445]
[1720585322354,0.25998181,3108.2,3107.1,2.445]
[1720585322497,0.59722152,3108.2,3107.1,2.445]
[1720585323395,0.33723971,3108.2,3107.2,2.43]
[1720585324199,0.25998181,3108.1,3107.2,2.43]
[1720585324405,0.25998181,3108.1,3106.8,5.43]
[1720585324636,0.25998181,3108.1,3106.8,5.6745]
[1720585325330,0.33723971,3108.2,3107.1,2.445]
[1720585325834,0.25998181,3108.2,3107.1,2.445]
[1720585326038,0.25998181,3108.2,3107.0,3.0]
[1720585326248,0.25998181,3108.2,3106.8,5.43]
[1720585326396,0.37315491,3108.4,3106.8,8.00499]
[1720585326750,0.25998181,3108.2,3107.1,2.445]
[1720585327245,0.25998181,3108.1,3107.1,2.605]
[1720585327396,0.1131731,3108.4,3107.2,3.0]
[1720585327602,0.55,3108.3,3107.1,0.16]